[Event "Titled Tuesday Blitz August 08 Early 2023"]
[White "NovoselovRoman"]
[Black "Qiao, Cindy"]
[BlackFideId "2620243"]
[WhiteElo "2597"]
[BlackElo "2397"]
[Result "1-0"]
[Round "10"]
[TimeControl "180+1"]
[Date "2023.08.08"]
[WhiteClock "0:00:28"]
[BlackClock "0:00:00"]
[Board "108"]

1. e4 {[%clk 0:02:48]}  d5 {[%clk 0:02:58]} 2. exd5 {[%clk 0:02:47]}  Qxd5 {[%clk 0:02:59]} 3. d4 {[%clk 0:02:47]}  Nf6 {[%clk 0:02:59]} 4. Nc3 {[%clk 0:02:48]}  Qd6 {[%clk 0:02:59]} 5. Nf3 {[%clk 0:02:48]}  g6 {[%clk 0:02:58]} 6. Ne5 {[%clk 0:02:48]}  Bg7 {[%clk 0:02:56]} 7. Bc4 {[%clk 0:02:46]}  O-O {[%clk 0:02:54]} 8. Bf4 {[%clk 0:02:46]}  Qd8 {[%clk 0:02:51]} 9. Qd2 {[%clk 0:02:43]}  a6 {[%clk 0:02:50]} 10. O-O-O {[%clk 0:02:39]}  b5 {[%clk 0:02:50]} 11. Bb3 {[%clk 0:02:32]}  Bb7 {[%clk 0:02:33]} 12. f3 {[%clk 0:02:31]}  e6 {[%clk 0:02:27]} 13. h4 {[%clk 0:02:20]}  Nd5 {[%clk 0:02:17]} 14. h5 {[%clk 0:02:10]}  Nxf4 {[%clk 0:01:39]} 15. Qxf4 {[%clk 0:02:11]}  Qf6 {[%clk 0:01:28]} 16. Qe3 {[%clk 0:01:42]}  Re8 {[%clk 0:01:13]} 17. Ne4 {[%clk 0:01:24]}  Bxe4 {[%clk 0:01:02]} 18. fxe4 {[%clk 0:00:56]}  Qe7 {[%clk 0:00:49]} 19. Rdf1 {[%clk 0:00:55]}  Rf8 {[%clk 0:00:33]} 20. Qh3 {[%clk 0:00:39]}  Qg5+ {[%clk 0:00:28]} 21. Kb1 {[%clk 0:00:38]}  Qh6 {[%clk 0:00:05]} 22. Nxf7 {[%clk 0:00:28]}  Rxf7 {[%clk 0:00:00]} 23. Qxe6 {[%clk 0:00:28]} 1-0


[Site "https://www.chess.com"]

[Event "Titled Tuesday Blitz August 08 Early 2023"]
[White "Bilan, Danila"]
[Black "Polaczek, Richard"]
[WhiteFideId "24161918"]
[BlackFideId "200026"]
[WhiteElo "2576"]
[BlackElo "2387"]
[Result "1-0"]
[Round "10"]
[TimeControl "180+1"]
[Date "2023.08.08"]
[WhiteClock "0:00:08"]
[BlackClock "0:00:00"]
[Board "110"]

1. d4 {[%clk 0:02:55]}  Nf6 {[%clk 0:02:59]} 2. Nf3 {[%clk 0:02:56]}  e6 {[%clk 0:02:58]} 3. Bg5 {[%clk 0:02:56]}  h6 {[%clk 0:02:53]} 4. Bh4 {[%clk 0:02:55]}  g5 {[%clk 0:02:46]} 5. Bg3 {[%clk 0:02:55]}  d6 {[%clk 0:02:46]} 6. Nbd2 {[%clk 0:02:55]}  Nh5 {[%clk 0:02:44]} 7. e3 {[%clk 0:02:54]}  Bg7 {[%clk 0:02:41]} 8. Bd3 {[%clk 0:02:54]}  Nd7 {[%clk 0:02:39]} 9. c3 {[%clk 0:02:54]}  Qe7 {[%clk 0:02:38]} 10. a4 {[%clk 0:02:46]}  a6 {[%clk 0:02:26]} 11. Ng1 {[%clk 0:02:32]}  Nxg3 {[%clk 0:02:24]} 12. hxg3 {[%clk 0:02:33]}  c5 {[%clk 0:02:23]} 13. a5 {[%clk 0:02:27]}  cxd4 {[%clk 0:02:06]} 14. cxd4 {[%clk 0:02:26]}  b6 {[%clk 0:02:02]} 15. axb6 {[%clk 0:02:21]}  Nxb6 {[%clk 0:02:01]} 16. Qb3 {[%clk 0:02:17]}  Qc7 {[%clk 0:01:56]} 17. Ne2 {[%clk 0:02:12]}  Bb7 {[%clk 0:01:49]} 18. O-O {[%clk 0:01:56]}  Bd5 {[%clk 0:01:45]} 19. Qb4 {[%clk 0:01:43]}  Rb8 {[%clk 0:00:55]} 20. Rfc1 {[%clk 0:01:31]}  Qd8 {[%clk 0:00:52]} 21. Rxa6 {[%clk 0:01:20]}  O-O {[%clk 0:00:51]} 22. Qa5 {[%clk 0:01:09]}  Nc8 {[%clk 0:00:23]} 23. b4 {[%clk 0:00:55]}  Bb7 {[%clk 0:00:20]} 24. Qxd8 {[%clk 0:00:48]}  Rxd8 {[%clk 0:00:20]} 25. Ra5 {[%clk 0:00:39]}  Bf8 {[%clk 0:00:18]} 26. b5 {[%clk 0:00:31]}  Nb6 {[%clk 0:00:17]} 27. Nc4 {[%clk 0:00:26]}  Nd5 {[%clk 0:00:15]} 28. Ra7 {[%clk 0:00:21]}  Nb4 {[%clk 0:00:13]} 29. Bb1 {[%clk 0:00:17]}  Bd5 {[%clk 0:00:12]} 30. Na3 {[%clk 0:00:13]}  Ra8 {[%clk 0:00:09]} 31. Rcc7 {[%clk 0:00:13]}  Rxa7 {[%clk 0:00:08]} 32. Rxa7 {[%clk 0:00:14]}  Rc8 {[%clk 0:00:08]} 33. b6 {[%clk 0:00:11]}  Rb8 {[%clk 0:00:07]} 34. Nc3 {[%clk 0:00:09]}  Rxb6 {[%clk 0:00:06]} 35. Nxd5 {[%clk 0:00:10]}  exd5 {[%clk 0:00:06]} 36. Bf5 {[%clk 0:00:08]}  Kg7 {[%clk 0:00:06]} 37. g4 {[%clk 0:00:08]}  Na2 {[%clk 0:00:03]} 38. Be6 {[%clk 0:00:08]}  Kf6 {[%clk 0:00:00]} 39. Bxd5 {[%clk 0:00:08]} 1-0


[Site "https://www.chess.com"]

[Event "Titled Tuesday Blitz August 08 Early 2023"]
[White "Kanyamarala, Tarun"]
[Black "Topalov, Aleksandar"]
[WhiteFideId "45004714"]
[BlackFideId "925659"]
[WhiteElo "2503"]
[BlackElo "2363"]
[Result "0-1"]
[Round "10"]
[TimeControl "180+1"]
[Date "2023.08.08"]
[WhiteClock "0:01:44"]
[BlackClock "0:01:45"]
[Board "113"]

1. d4 {[%clk 0:02:59]}  e6 {[%clk 0:02:59]} 2. e4 {[%clk 0:02:59]}  d5 {[%clk 0:02:59]} 3. e5 {[%clk 0:02:58]}  Ne7 {[%clk 0:02:58]} 4. c3 {[%clk 0:02:54]}  Qd7 {[%clk 0:02:58]} 5. Bd3 {[%clk 0:02:52]}  b6 {[%clk 0:02:58]} 6. Qe2 {[%clk 0:02:49]}  a5 {[%clk 0:02:58]} 7. Nf3 {[%clk 0:02:44]}  Ba6 {[%clk 0:02:57]} 8. Bxa6 {[%clk 0:02:45]}  Nxa6 {[%clk 0:02:58]} 9. O-O {[%clk 0:02:45]}  Nf5 {[%clk 0:02:57]} 10. g4 {[%clk 0:02:44]}  Ne7 {[%clk 0:02:57]} 11. h3 {[%clk 0:02:44]}  h5 {[%clk 0:02:57]} 12. Bf4 {[%clk 0:02:43]}  hxg4 {[%clk 0:02:57]} 13. hxg4 {[%clk 0:02:43]}  Ng6 {[%clk 0:02:57]} 14. Bg3 {[%clk 0:02:44]}  c5 {[%clk 0:02:56]} 15. Nbd2 {[%clk 0:02:44]}  Nb8 {[%clk 0:02:56]} 16. Rfd1 {[%clk 0:02:38]}  Nc6 {[%clk 0:02:54]} 17. a4 {[%clk 0:02:36]}  cxd4 {[%clk 0:02:48]} 18. cxd4 {[%clk 0:02:33]}  Nb4 {[%clk 0:02:42]} 19. Nb1 {[%clk 0:02:32]}  Be7 {[%clk 0:02:32]} 20. Nc3 {[%clk 0:02:31]}  O-O {[%clk 0:02:30]} 21. Kg2 {[%clk 0:02:30]}  Rfc8 {[%clk 0:02:28]} 22. Rh1 {[%clk 0:02:29]}  f6 {[%clk 0:01:59]} 23. Rh5 {[%clk 0:02:26]}  Kf7 {[%clk 0:01:55]} 24. exf6 {[%clk 0:02:03]}  Bxf6 {[%clk 0:01:54]} 25. Nb5 {[%clk 0:01:58]}  Rc2 {[%clk 0:01:49]} 26. Nd6+ {[%clk 0:01:56]}  Qxd6 {[%clk 0:01:46]} 27. Qxc2 {[%clk 0:01:51]}  Nxc2 {[%clk 0:01:45]} 28. Bxd6 {[%clk 0:01:44]}  Nxa1 {[%clk 0:01:45]} 0-1


[Site "https://www.chess.com"]

[Event "Titled Tuesday Blitz August 08 Early 2023"]
[White "Rottenwohrer Suarez, Juan"]
[Black "MarijaKuznecova"]
[WhiteFideId "32068182"]
[WhiteElo "2475"]
[BlackElo "2348"]
[Result "0-1"]
[Round "10"]
[TimeControl "180+1"]
[Date "2023.08.08"]
[WhiteClock "0:00:00"]
[BlackClock "0:00:17"]
[Board "116"]

1. d4 {[%clk 0:03:00]}  Nf6 {[%clk 0:02:57]} 2. Nf3 {[%clk 0:02:59]}  c5 {[%clk 0:02:51]} 3. d5 {[%clk 0:02:59]}  b5 {[%clk 0:02:49]} 4. e4 {[%clk 0:02:58]}  Nxe4 {[%clk 0:02:45]} 5. Bd3 {[%clk 0:02:59]}  Nd6 {[%clk 0:02:44]} 6. O-O {[%clk 0:02:43]}  g6 {[%clk 0:02:40]} 7. Bf4 {[%clk 0:02:40]}  Nc4 {[%clk 0:02:31]} 8. Bxc4 {[%clk 0:02:32]}  bxc4 {[%clk 0:02:32]} 9. d6 {[%clk 0:02:33]}  Bg7 {[%clk 0:02:06]} 10. dxe7 {[%clk 0:02:28]}  Qb6 {[%clk 0:02:06]} 11. Nc3 {[%clk 0:02:09]}  Bb7 {[%clk 0:01:58]} 12. Nd5 {[%clk 0:02:05]}  Bxd5 {[%clk 0:01:58]} 13. Qxd5 {[%clk 0:02:06]}  Nc6 {[%clk 0:01:58]} 14. Qxc4 {[%clk 0:02:00]}  Qb4 {[%clk 0:01:44]} 15. Qe2 {[%clk 0:01:49]}  Qxf4 {[%clk 0:01:42]} 16. c3 {[%clk 0:01:02]}  Bf6 {[%clk 0:01:39]} 17. Rad1 {[%clk 0:00:51]}  Bxe7 {[%clk 0:01:33]} 18. Rfe1 {[%clk 0:00:49]}  O-O {[%clk 0:01:21]} 19. Rxd7 {[%clk 0:00:48]}  Rfe8 {[%clk 0:01:18]} 20. g3 {[%clk 0:00:46]}  Qf5 {[%clk 0:01:13]} 21. Rc7 {[%clk 0:00:46]}  Rac8 {[%clk 0:00:59]} 22. Rxc8 {[%clk 0:00:39]}  Rxc8 {[%clk 0:01:00]} 23. Kg2 {[%clk 0:00:37]}  Bf6 {[%clk 0:00:57]} 24. Qa6 {[%clk 0:00:36]}  Qd7 {[%clk 0:00:51]} 25. h4 {[%clk 0:00:25]}  h5 {[%clk 0:00:49]} 26. Re2 {[%clk 0:00:25]}  Kg7 {[%clk 0:00:46]} 27. Rd2 {[%clk 0:00:25]}  Qe6 {[%clk 0:00:34]} 28. a3 {[%clk 0:00:22]}  Ne5 {[%clk 0:00:25]} 29. Qxe6 {[%clk 0:00:17]}  fxe6 {[%clk 0:00:26]} 30. Nxe5 {[%clk 0:00:17]}  Bxe5 {[%clk 0:00:27]} 31. Rd7+ {[%clk 0:00:18]}  Kf6 {[%clk 0:00:27]} 32. Rxa7 {[%clk 0:00:18]}  Rb8 {[%clk 0:00:24]} 33. b4 {[%clk 0:00:17]}  Bxc3 {[%clk 0:00:21]} 34. bxc5 {[%clk 0:00:17]}  Rc8 {[%clk 0:00:22]} 35. Ra4 {[%clk 0:00:06]}  Rxc5 {[%clk 0:00:21]} 36. Rf4+ {[%clk 0:00:06]}  Ke5 {[%clk 0:00:20]} 37. Ra4 {[%clk 0:00:07]}  Bd4 {[%clk 0:00:20]} 38. f4+ {[%clk 0:00:03]}  Ke4 {[%clk 0:00:19]} 39. Rb4 {[%clk 0:00:04]}  Rc2+ {[%clk 0:00:18]} 40. Kf1 {[%clk 0:00:03]}  Kf3 {[%clk 0:00:17]} 41. Rxd4 {[%clk 0:00:00]}  Rc1+ {[%clk 0:00:17]} 0-1


[Site "https://www.chess.com"]

[Event "Titled Tuesday Blitz August 08 Early 2023"]
[White "rikchessmx"]
[Black "Rosh Jain"]
[BlackFideId "25789465"]
[WhiteElo "2347"]
[BlackElo "2474"]
[Result "1-0"]
[Round "10"]
[TimeControl "180+1"]
[Date "2023.08.08"]
[WhiteClock "0:00:15"]
[BlackClock "0:00:05"]
[Board "117"]

1. e4 {[%clk 0:02:56]}  c5 {[%clk 0:02:59]} 2. Nf3 {[%clk 0:02:54]}  d6 {[%clk 0:02:59]} 3. d4 {[%clk 0:02:55]}  cxd4 {[%clk 0:02:59]} 4. Nxd4 {[%clk 0:02:56]}  Nf6 {[%clk 0:02:59]} 5. Nc3 {[%clk 0:02:56]}  a6 {[%clk 0:02:59]} 6. f4 {[%clk 0:02:56]}  e5 {[%clk 0:02:58]} 7. Nf3 {[%clk 0:02:56]}  Nbd7 {[%clk 0:02:58]} 8. Bd3 {[%clk 0:02:56]}  b5 {[%clk 0:02:57]} 9. a3 {[%clk 0:02:55]}  Be7 {[%clk 0:02:57]} 10. O-O {[%clk 0:02:55]}  O-O {[%clk 0:02:56]} 11. Qe1 {[%clk 0:02:56]}  Bb7 {[%clk 0:02:56]} 12. Kh1 {[%clk 0:02:56]}  Re8 {[%clk 0:02:55]} 13. fxe5 {[%clk 0:02:55]}  dxe5 {[%clk 0:02:47]} 14. Nh4 {[%clk 0:02:51]}  Nc5 {[%clk 0:02:39]} 15. Nf5 {[%clk 0:02:51]}  Nxd3 {[%clk 0:02:39]} 16. cxd3 {[%clk 0:02:50]}  Bf8 {[%clk 0:02:09]} 17. Qg3 {[%clk 0:02:49]}  Nh5 {[%clk 0:02:04]} 18. Nh6+ {[%clk 0:02:41]}  Kh8 {[%clk 0:02:02]} 19. Nxf7+ {[%clk 0:02:41]}  Kg8 {[%clk 0:02:03]} 20. Qh3 {[%clk 0:02:36]}  Qd4 {[%clk 0:01:37]} 21. Qxh5 {[%clk 0:02:25]}  Qxd3 {[%clk 0:01:35]} 22. Bg5 {[%clk 0:01:46]}  g6 {[%clk 0:01:23]} 23. Nh6+ {[%clk 0:01:36]}  Bxh6 {[%clk 0:01:18]} 24. Qxh6 {[%clk 0:01:36]}  Rf8 {[%clk 0:01:18]} 25. Rfd1 {[%clk 0:01:29]}  Qc4 {[%clk 0:01:17]} 26. Be7 {[%clk 0:01:15]}  Rf7 {[%clk 0:01:15]} 27. Bb4 {[%clk 0:00:56]}  a5 {[%clk 0:01:07]} 28. Bxa5 {[%clk 0:00:44]}  Bxe4 {[%clk 0:00:51]} 29. Nxe4 {[%clk 0:00:41]}  Qxe4 {[%clk 0:00:52]} 30. Bb4 {[%clk 0:00:37]}  Rf2 {[%clk 0:00:48]} 31. Rg1 {[%clk 0:00:33]}  Rc8 {[%clk 0:00:42]} 32. Rae1 {[%clk 0:00:32]}  Qd5 {[%clk 0:00:37]} 33. Bc3 {[%clk 0:00:24]}  Re8 {[%clk 0:00:30]} 34. Qe3 {[%clk 0:00:24]}  Rf5 {[%clk 0:00:28]} 35. Qe4 {[%clk 0:00:24]}  Qe6 {[%clk 0:00:26]} 36. h3 {[%clk 0:00:24]}  Rh5 {[%clk 0:00:23]} 37. Rgf1 {[%clk 0:00:20]}  Qd7 {[%clk 0:00:16]} 38. Kg1 {[%clk 0:00:19]}  Qa7+ {[%clk 0:00:15]} 39. Qe3 {[%clk 0:00:19]}  Qc7 {[%clk 0:00:15]} 40. Rd1 {[%clk 0:00:18]}  e4 {[%clk 0:00:14]} 41. Qd4 {[%clk 0:00:17]}  Rhe5 {[%clk 0:00:14]} 42. Rde1 {[%clk 0:00:16]}  e3 {[%clk 0:00:14]} 43. Rxe3 {[%clk 0:00:16]}  b4 {[%clk 0:00:12]} 44. axb4 {[%clk 0:00:15]}  Rxe3 {[%clk 0:00:05]} 45. Qh8# {[%clk 0:00:15]} 1-0


[Site "https://www.chess.com"]

[Event "Titled Tuesday Blitz August 08 Early 2023"]
[White "Dong Khanh Linh"]
[Black "Gavilan Diaz, Mario"]
[WhiteFideId "12403040"]
[BlackFideId "2260905"]
[WhiteElo "2344"]
[BlackElo "2473"]
[Result "0-1"]
[Round "10"]
[TimeControl "180+1"]
[Date "2023.08.08"]
[WhiteClock "0:00:01"]
[BlackClock "0:00:07"]
[Board "118"]

1. d4 {[%clk 0:03:00]}  Nf6 {[%clk 0:03:00]} 2. Nf3 {[%clk 0:03:00]}  c5 {[%clk 0:03:00]} 3. e3 {[%clk 0:03:00]}  g6 {[%clk 0:02:58]} 4. dxc5 {[%clk 0:02:53]}  Bg7 {[%clk 0:02:57]} 5. b4 {[%clk 0:02:47]}  a5 {[%clk 0:02:51]} 6. b5 {[%clk 0:02:37]}  Ne4 {[%clk 0:02:47]} 7. Nd4 {[%clk 0:02:36]}  Nxc5 {[%clk 0:02:46]} 8. c4 {[%clk 0:02:31]}  O-O {[%clk 0:02:39]} 9. Be2 {[%clk 0:02:31]}  b6 {[%clk 0:02:30]} 10. Bf3 {[%clk 0:02:26]}  Bb7 {[%clk 0:02:26]} 11. Bb2 {[%clk 0:02:21]}  d5 {[%clk 0:02:13]} 12. cxd5 {[%clk 0:02:17]}  Bxd5 {[%clk 0:02:12]} 13. O-O {[%clk 0:02:16]}  Bxf3 {[%clk 0:02:01]} 14. Qxf3 {[%clk 0:02:17]}  Ra7 {[%clk 0:02:01]} 15. Nd2 {[%clk 0:02:01]}  Nd3 {[%clk 0:01:56]} 16. Bc3 {[%clk 0:01:56]}  Rc7 {[%clk 0:01:56]} 17. Nc6 {[%clk 0:01:38]}  Nxc6 {[%clk 0:01:42]} 18. Bxg7 {[%clk 0:01:37]}  Nce5 {[%clk 0:01:28]} 19. Bxe5 {[%clk 0:01:13]}  Nxe5 {[%clk 0:01:29]} 20. Qe4 {[%clk 0:01:10]}  Rc5 {[%clk 0:01:19]} 21. Rfd1 {[%clk 0:01:05]}  Rxb5 {[%clk 0:00:50]} 22. a4 {[%clk 0:00:54]}  Rd5 {[%clk 0:00:48]} 23. Rdb1 {[%clk 0:00:35]}  Rxd2 {[%clk 0:00:25]} 24. Qxe5 {[%clk 0:00:35]}  Qd6 {[%clk 0:00:24]} 25. Qe4 {[%clk 0:00:32]}  Rd8 {[%clk 0:00:22]} 26. g3 {[%clk 0:00:32]}  h5 {[%clk 0:00:21]} 27. Rb5 {[%clk 0:00:29]}  Rxf2 {[%clk 0:00:17]} 28. Kxf2 {[%clk 0:00:20]}  Qf6+ {[%clk 0:00:17]} 29. Kg2 {[%clk 0:00:18]}  Rd2+ {[%clk 0:00:14]} 30. Kh3 {[%clk 0:00:15]}  Qxa1 {[%clk 0:00:13]} 31. Qf4 {[%clk 0:00:11]}  Qg1 {[%clk 0:00:12]} 32. Kh4 {[%clk 0:00:08]}  Qxh2+ {[%clk 0:00:09]} 33. Kg5 {[%clk 0:00:08]}  h4 {[%clk 0:00:09]} 34. gxh4 {[%clk 0:00:05]}  Rg2+ {[%clk 0:00:09]} 35. Kh6 {[%clk 0:00:06]}  Qxf4+ {[%clk 0:00:07]} 36. exf4 {[%clk 0:00:07]}  Rg4 {[%clk 0:00:08]} 37. Rxb6 {[%clk 0:00:06]}  Rxh4+ {[%clk 0:00:08]} 38. Kg5 {[%clk 0:00:07]}  Rh5+ {[%clk 0:00:08]} 39. Kg4 {[%clk 0:00:07]}  Kg7 {[%clk 0:00:08]} 40. Rb5 {[%clk 0:00:08]}  Rh1 {[%clk 0:00:06]} 41. Rxa5 {[%clk 0:00:08]}  Ra1 {[%clk 0:00:06]} 42. Ra7 {[%clk 0:00:08]}  e6 {[%clk 0:00:06]} 43. Kg5 {[%clk 0:00:07]}  Rg1+ {[%clk 0:00:05]} 44. Kh4 {[%clk 0:00:07]}  Kf6 {[%clk 0:00:06]} 45. a5 {[%clk 0:00:07]}  Ra1 {[%clk 0:00:06]} 46. Kg4 {[%clk 0:00:07]}  Ra4 {[%clk 0:00:06]} 47. a6 {[%clk 0:00:07]}  g5 {[%clk 0:00:06]} 48. Kg3 {[%clk 0:00:06]}  Rxf4 {[%clk 0:00:06]} 49. Ra8 {[%clk 0:00:06]}  Ra4 {[%clk 0:00:06]} 50. Ra7 {[%clk 0:00:06]}  Kg6 {[%clk 0:00:06]} 51. Ra8 {[%clk 0:00:07]}  Kf5 {[%clk 0:00:06]} 52. Ra7 {[%clk 0:00:05]}  f6 {[%clk 0:00:06]} 53. Ra8 {[%clk 0:00:05]}  e5 {[%clk 0:00:07]} 54. Kf3 {[%clk 0:00:05]}  Ra3+ {[%clk 0:00:07]} 55. Ke2 {[%clk 0:00:05]}  g4 {[%clk 0:00:07]} 56. Ra7 {[%clk 0:00:04]}  Kf4 {[%clk 0:00:07]} 57. Ra8 {[%clk 0:00:03]}  f5 {[%clk 0:00:08]} 58. a7 {[%clk 0:00:03]}  e4 {[%clk 0:00:08]} 59. Kf2 {[%clk 0:00:03]}  Ra2+ {[%clk 0:00:08]} 60. Ke1 {[%clk 0:00:03]}  g3 {[%clk 0:00:09]} 61. Kf1 {[%clk 0:00:03]}  Kf3 {[%clk 0:00:08]} 62. Ke1 {[%clk 0:00:03]}  g2 {[%clk 0:00:08]} 63. Rg8 {[%clk 0:00:01]}  Rxa7 {[%clk 0:00:07]} 0-1


[Site "https://www.chess.com"]

[Event "Titled Tuesday Blitz August 08 Early 2023"]
[White "Ziatdinov, Raset"]
[Black "Ljukin, Sergei"]
[WhiteFideId "2015323"]
[BlackFideId "14102200"]
[WhiteElo "2341"]
[BlackElo "2470"]
[Result "0-1"]
[Round "10"]
[TimeControl "180+1"]
[Date "2023.08.08"]
[WhiteClock "0:01:18"]
[BlackClock "0:01:05"]
[Board "119"]

1. e4 {[%clk 0:02:56]}  e6 {[%clk 0:02:57]} 2. d4 {[%clk 0:02:55]}  d5 {[%clk 0:02:57]} 3. Nc3 {[%clk 0:02:56]}  Bb4 {[%clk 0:02:56]} 4. Qg4 {[%clk 0:02:55]}  Nf6 {[%clk 0:02:56]} 5. Qxg7 {[%clk 0:02:55]}  Rg8 {[%clk 0:02:56]} 6. Qh6 {[%clk 0:02:55]}  Rg6 {[%clk 0:02:57]} 7. Qh4 {[%clk 0:02:54]}  Rg4 {[%clk 0:02:57]} 8. Qh6 {[%clk 0:02:52]}  Rg6 {[%clk 0:02:57]} 9. Qh4 {[%clk 0:02:52]}  c5 {[%clk 0:02:53]} 10. e5 {[%clk 0:02:47]}  Bxc3+ {[%clk 0:02:52]} 11. bxc3 {[%clk 0:02:46]}  Ne4 {[%clk 0:02:53]} 12. Qxd8+ {[%clk 0:02:45]}  Kxd8 {[%clk 0:02:52]} 13. Bd3 {[%clk 0:02:37]}  Rxg2 {[%clk 0:02:41]} 14. Nh3 {[%clk 0:02:35]}  Nxc3 {[%clk 0:02:30]} 15. Bb2 {[%clk 0:02:21]}  cxd4 {[%clk 0:02:28]} 16. Bxh7 {[%clk 0:02:18]}  Nc6 {[%clk 0:02:23]} 17. Kf1 {[%clk 0:02:05]}  Rg7 {[%clk 0:02:17]} 18. Bd3 {[%clk 0:02:03]}  Nxe5 {[%clk 0:02:17]} 19. Nf4 {[%clk 0:02:00]}  Bd7 {[%clk 0:01:59]} 20. h4 {[%clk 0:01:56]}  Ke7 {[%clk 0:01:52]} 21. h5 {[%clk 0:01:55]}  Rh8 {[%clk 0:01:30]} 22. Ba3+ {[%clk 0:01:53]}  Kf6 {[%clk 0:01:19]} 23. h6 {[%clk 0:01:47]}  Nxd3 {[%clk 0:01:18]} 24. hxg7 {[%clk 0:01:38]}  Rxh1+ {[%clk 0:01:18]} 25. Kg2 {[%clk 0:01:38]}  Nxf4+ {[%clk 0:01:18]} 26. Kxh1 {[%clk 0:01:31]}  Kxg7 {[%clk 0:01:17]} 27. Bd6 {[%clk 0:01:32]}  Ng6 {[%clk 0:01:08]} 28. Kg2 {[%clk 0:01:26]}  e5 {[%clk 0:01:06]} 29. Re1 {[%clk 0:01:23]}  Ne4 {[%clk 0:01:05]} 30. f3 {[%clk 0:01:18]}  Nxd6 {[%clk 0:01:05]} 0-1


[Site "https://www.chess.com"]

[Event "Titled Tuesday Blitz August 08 Early 2023"]
[White "Valle Maytin, Luis Enrique"]
[Black "slidingknight2775"]
[WhiteFideId "3503666"]
[WhiteElo "2334"]
[BlackElo "2465"]
[Result "1-0"]
[Round "10"]
[TimeControl "180+1"]
[Date "2023.08.08"]
[WhiteClock "0:00:08"]
[BlackClock "0:00:05"]
[Board "120"]

1. d4 {[%clk 0:03:00]}  Nf6 {[%clk 0:02:56]} 2. Nf3 {[%clk 0:03:00]}  d5 {[%clk 0:02:56]} 3. e3 {[%clk 0:03:01]}  g6 {[%clk 0:02:52]} 4. Be2 {[%clk 0:03:00]}  Bg7 {[%clk 0:02:53]} 5. b4 {[%clk 0:03:00]}  O-O {[%clk 0:02:54]} 6. O-O {[%clk 0:02:55]}  a5 {[%clk 0:02:54]} 7. b5 {[%clk 0:02:56]}  c5 {[%clk 0:02:54]} 8. bxc6 {[%clk 0:02:56]}  Nxc6 {[%clk 0:02:55]} 9. c4 {[%clk 0:02:55]}  dxc4 {[%clk 0:02:54]} 10. Bxc4 {[%clk 0:02:54]}  Bf5 {[%clk 0:02:55]} 11. Nbd2 {[%clk 0:02:53]}  Ne4 {[%clk 0:02:54]} 12. Ba3 {[%clk 0:02:46]}  Nxd2 {[%clk 0:02:52]} 13. Qxd2 {[%clk 0:02:45]}  Be4 {[%clk 0:02:52]} 14. Rfd1 {[%clk 0:02:35]}  Bd5 {[%clk 0:02:42]} 15. Rac1 {[%clk 0:02:33]}  Bxc4 {[%clk 0:02:41]} 16. Rxc4 {[%clk 0:02:32]}  Re8 {[%clk 0:02:37]} 17. Rb1 {[%clk 0:02:21]}  Rb8 {[%clk 0:02:24]} 18. g3 {[%clk 0:02:06]}  Qd5 {[%clk 0:02:22]} 19. Qe2 {[%clk 0:02:05]}  e6 {[%clk 0:01:14]} 20. Rc5 {[%clk 0:02:01]}  Qd7 {[%clk 0:00:57]} 21. Rcb5 {[%clk 0:02:00]}  Rec8 {[%clk 0:00:39]} 22. Qb2 {[%clk 0:01:57]}  Rc7 {[%clk 0:00:37]} 23. Bc5 {[%clk 0:01:52]}  h5 {[%clk 0:00:36]} 24. Bb6 {[%clk 0:01:51]}  Rcc8 {[%clk 0:00:37]} 25. Bxa5 {[%clk 0:01:50]}  Nxa5 {[%clk 0:00:37]} 26. Rxa5 {[%clk 0:01:50]}  Ra8 {[%clk 0:00:33]} 27. Rxa8 {[%clk 0:01:46]}  Rxa8 {[%clk 0:00:34]} 28. Qxb7 {[%clk 0:01:46]}  Qxb7 {[%clk 0:00:34]} 29. Rxb7 {[%clk 0:01:46]}  Rxa2 {[%clk 0:00:35]} 30. Ng5 {[%clk 0:01:37]}  f5 {[%clk 0:00:19]} 31. Nxe6 {[%clk 0:01:35]}  Bf6 {[%clk 0:00:19]} 32. Nf4 {[%clk 0:01:32]}  Ra1+ {[%clk 0:00:18]} 33. Kg2 {[%clk 0:01:31]}  g5 {[%clk 0:00:19]} 34. Nxh5 {[%clk 0:01:31]}  Bh8 {[%clk 0:00:19]} 35. h4 {[%clk 0:01:29]}  gxh4 {[%clk 0:00:19]} 36. gxh4 {[%clk 0:01:29]}  Ra2 {[%clk 0:00:14]} 37. Kf3 {[%clk 0:01:29]}  Rc2 {[%clk 0:00:14]} 38. Rb8+ {[%clk 0:01:14]}  Kh7 {[%clk 0:00:14]} 39. Rf8 {[%clk 0:01:12]}  Rc3 {[%clk 0:00:09]} 40. Kf4 {[%clk 0:01:07]}  Rc2 {[%clk 0:00:09]} 41. f3 {[%clk 0:01:07]}  Rh2 {[%clk 0:00:06]} 42. Kg3 {[%clk 0:01:03]}  Re2 {[%clk 0:00:06]} 43. Kf4 {[%clk 0:00:58]}  Rh2 {[%clk 0:00:07]} 44. Rxf5 {[%clk 0:00:58]}  Rxh4+ {[%clk 0:00:07]} 45. Kg3 {[%clk 0:00:58]}  Rh1 {[%clk 0:00:08]} 46. d5 {[%clk 0:00:50]}  Kg6 {[%clk 0:00:07]} 47. Kg4 {[%clk 0:00:44]}  Rg1+ {[%clk 0:00:06]} 48. Kf4 {[%clk 0:00:41]}  Rh1 {[%clk 0:00:06]} 49. Rg5+ {[%clk 0:00:33]}  Kh6 {[%clk 0:00:05]} 50. Ng3 {[%clk 0:00:33]}  Rd1 {[%clk 0:00:04]} 51. Nf5+ {[%clk 0:00:30]}  Kh7 {[%clk 0:00:04]} 52. Rh5+ {[%clk 0:00:21]}  Kg8 {[%clk 0:00:04]} 53. e4 {[%clk 0:00:20]}  Bc3 {[%clk 0:00:03]} 54. Ne7+ {[%clk 0:00:18]}  Kf7 {[%clk 0:00:04]} 55. Rh7+ {[%clk 0:00:18]}  Ke8 {[%clk 0:00:03]} 56. Kf5 {[%clk 0:00:18]}  Rf1 {[%clk 0:00:03]} 57. f4 {[%clk 0:00:18]}  Bd2 {[%clk 0:00:02]} 58. Ng6 {[%clk 0:00:18]}  Kd8 {[%clk 0:00:02]} 59. d6 {[%clk 0:00:18]}  Bb4 {[%clk 0:00:02]} 60. e5 {[%clk 0:00:18]}  Rc1 {[%clk 0:00:03]} 61. Ke6 {[%clk 0:00:17]}  Kc8 {[%clk 0:00:02]} 62. f5 {[%clk 0:00:14]}  Re1 {[%clk 0:00:02]} 63. Rc7+ {[%clk 0:00:11]}  Kb8 {[%clk 0:00:02]} 64. Rc4 {[%clk 0:00:10]}  Rf1 {[%clk 0:00:03]} 65. Rxb4+ {[%clk 0:00:06]}  Ka7 {[%clk 0:00:03]} 66. Rc4 {[%clk 0:00:07]}  Rg1 {[%clk 0:00:04]} 67. Rd4 {[%clk 0:00:07]}  Kb6 {[%clk 0:00:04]} 68. d7 {[%clk 0:00:07]}  Kc5 {[%clk 0:00:04]} 69. d8=Q {[%clk 0:00:08]}  Rxg6+ {[%clk 0:00:04]} 70. fxg6 {[%clk 0:00:07]}  Kb5 {[%clk 0:00:04]} 71. Qd6 {[%clk 0:00:07]}  Ka5 {[%clk 0:00:05]} 72. Rd5+ {[%clk 0:00:07]}  Ka4 {[%clk 0:00:05]} 73. Qb8 {[%clk 0:00:08]}  Ka3 {[%clk 0:00:05]} 74. Ra5# {[%clk 0:00:08]} 1-0


[Site "https://www.chess.com"]